fUSD/lending_fUSD_20250223
["ID","MTS","AMOUNT","RATE_DAILY","PERIOD"]
[354221598,1740352242041,-888.13,0.0001652,2]
[354221599,1740352242050,-500.0,0.0001652,2]
[354221600,1740352242059,-500.0,0.0001652,2]
[354221601,1740352242068,-500.0,0.0001652,2]
[354221602,1740352242077,-1209.93,0.0001652,2]
[354221603,1740352242086,-500.0,0.0001652,2]
[354221604,1740352242095,-887.25,0.0001652,2]
[354221605,1740352242104,-635.07,0.0001652,2]
[354221606,1740352242113,-500.0,0.0001652,2]
[354221607,1740352242122,-500.0,0.0001652,2]
[354221608,1740352242132,-906.08,0.0001652,2]
[354221609,1740352242141,-500.0,0.0001652,2]
[354221610,1740352242151,-500.0,0.0001652,2]
[354221611,1740352242160,-1368.52,0.0001652,2]
[354221612,1740352242169,-500.0,0.0001652,2]
[354221613,1740352242179,-544.66,0.0001652,2]
[354221614,1740352242188,-500.0,0.0001652,2]
[354221615,1740352242197,-790.31,0.0001652,2]
[354221616,1740352242206,-1058.64,0.0001652,2]
[354221617,1740352242215,-1175.32,0.0001652,2]
[354221618,1740352242225,-897.85,0.0001652,2]
[354221619,1740352242234,-500.0,0.0001652,2]
[354221620,1740352242243,-500.0,0.0001652,2]
[354221621,1740352242252,-500.0,0.0001652,2]
[354221622,1740352242261,-500.0,0.0001652,2]
[354221624,1740352242271,-1230.76,0.0001652,2]
[354221626,1740352242281,-1372.08,0.0001652,2]
[354221628,1740352242290,-500.0,0.0001652,2]
[354221631,1740352242300,-958.26,0.0001652,2]
[354221634,1740352242309,-500.0,0.0001652,2]
[354221636,1740352242319,-500.0,0.0001652,2]
[354221639,1740352242328,-500.0,0.0001652,2]
[354221642,1740352242338,-500.0,0.0001652,2]
[354221645,1740352242347,-500.0,0.0001652,2]
[354221648,1740352242356,-1133.7,0.0001652,2]
[354221650,1740352242369,-547.77,0.0001652,2]
[354221652,1740352242378,-500.0,0.0001652,2]
[354221654,1740352242387,-816.84,0.0001652,2]
[354221656,1740352242397,-821.79,0.0001652,2]
[354221658,1740352242407,-500.0,0.0001652,2]
[354221660,1740352242417,-500.0,0.0001652,2]
[354221670,1740352242527,-500.0,0.0001652,2]
[354221671,1740352242546,-500.0,0.0001652,2]
[354221672,1740352242556,-500.0,0.0001652,2]
[354221673,1740352242566,-1028.74,0.0001652,2]
[354221674,1740352242575,-959.94,0.0001652,2]
[354221675,1740352242584,-1776.38,0.0001652,2]
[354221676,1740352242594,-1447.83,0.0001652,2]
[354221677,1740352242603,-500.0,0.0001652,2]
[354221678,1740352242613,-500.0,0.0001652,2]
[354221679,1740352242623,-500.0,0.0001652,2]
[354221680,1740352242632,-751.84,0.0001652,2]
[354221681,1740352242641,-761.16,0.0001652,2]
[354221682,1740352242651,-500.0,0.0001652,2]
[354221683,1740352242660,-500.0,0.0001652,2]
[354221684,1740352242670,-813.26,0.0001652,2]
[354221685,1740352242679,-1058.56,0.0001652,2]
[354221686,1740352242689,-815.73,0.0001652,2]
[354221687,1740352242698,-500.0,0.0001652,2]
[354221688,1740352242707,-500.0,0.0001652,2]
[354221689,1740352242716,-696.88,0.0001652,2]
[354221690,1740352242726,-527.2,0.0001652,2]
[354221691,1740352242735,-910.19,0.0001652,2]
[354221692,1740352242745,-1913.05,0.0001652,2]
[354221693,1740352242754,-669.04,0.0001652,2]
[354221694,1740352242763,-1110.92,0.0001652,2]
[354221695,1740352242773,-1183.22,0.0001652,2]
[354221696,1740352242782,-500.0,0.0001652,2]
[354221697,1740352242791,-374.40959478,0.0001652,2]
[354221699,1740352242801,-500.0,0.0001652,2]
[354221701,1740352242810,-500.0,0.0001652,2]
[354221703,1740352242819,-500.0,0.0001652,2]
[354221705,1740352242828,-500.0,0.0001652,2]
[354221707,1740352242838,-1240.78,0.0001652,2]
[354221709,1740352242849,-879.3,0.0001652,2]
[354221711,1740352242858,-500.0,0.0001652,2]
[354221713,1740352242867,-1767.26,0.0001652,2]
[354221715,1740352242877,-967.57,0.0001652,2]
[354221717,1740352242886,-1994.53,0.0001652,2]
[354221719,1740352242896,-500.0,0.0001652,2]
[354221721,1740352242905,-1000.31,0.0001652,2]
[354221723,1740352242914,-500.0,0.0001652,2]
[354221725,1740352242924,-875.12,0.0001652,2]
[354221727,1740352242934,-500.0,0.0001652,2]
[354221729,1740352242943,-908.59,0.0001652,2]
[354221731,1740352242952,-500.0,0.0001652,2]
[354221733,1740352242962,-702.63,0.0001652,2]
[354221735,1740352242974,-777.1,0.0001652,2]
[354221737,1740352242983,-190.949618,0.0001652,2]
[354221739,1740352242992,-500.0,0.0001652,2]
[354221741,1740352243002,-500.0,0.0001652,2]
[354221743,1740352243011,-500.0,0.0001652,2]
[354221745,1740352243020,-1364.58,0.0001652,2]
[354221747,1740352243029,-956.09,0.0001652,2]
[354221749,1740352243039,-500.0,0.0001652,2]
[354221751,1740352243047,-500.0,0.0001652,2]
[354221753,1740352243057,-985.86,0.0001652,2]
[354221755,1740352243066,-376.2,0.0001652,2]
[354221757,1740352243075,-533.65,0.0001652,2]
[354221759,1740352243085,-500.0,0.0001652,2]
[354221761,1740352243094,-518.47,0.0001652,2]
[354221763,1740352243103,-1144.86,0.0001652,2]
[354221765,1740352243113,-500.0,0.0001652,2]
[354221767,1740352243122,-526.47,0.0001652,2]
[354221769,1740352243131,-250.298795,0.0001652,2]
[354221771,1740352243142,-1709.74,0.0001652,2]
[354221773,1740352243151,-500.0,0.0001652,2]
[354221775,1740352243162,-500.0,0.0001652,2]
[354221777,1740352243171,-769.14,0.0001652,2]
[354221779,1740352243181,-864.95,0.0001652,2]
[354221781,1740352243190,-500.0,0.0001652,2]
[354221783,1740352243199,-500.0,0.0001652,2]
[354221785,1740352243209,-1867.05,0.0001652,2]
[354221787,1740352243220,-500.0,0.0001652,2]
[354221789,1740352243230,-500.0,0.0001652,2]
[354221791,1740352243240,-500.0,0.0001652,2]
[354221793,1740352243250,-974.3,0.0001652,2]
[354221795,1740352243260,-613.44,0.0001652,2]
[354221797,1740352243271,-923.63,0.0001652,2]
[354221800,1740352243280,-815.98,0.0001652,2]
[354221801,1740352243290,-500.0,0.0001652,2]
[354221804,1740352243300,-665.57,0.0001652,2]
[354221806,1740352243310,-500.0,0.0001652,2]
[354221808,1740352243319,-1761.7,0.0001652,2]
[354221810,1740352243328,-500.0,0.0001652,2]
[354221812,1740352243338,-500.0,0.0001652,2]
[354221814,1740352243347,-620.02,0.0001652,2]
[354221816,1740352243357,-500.0,0.0001652,2]
[354221818,1740352243366,-1560.99,0.0001652,2]
[354221820,1740352243378,-1356.13,0.0001652,2]
[354221822,1740352243387,-500.0,0.0001652,2]
[354221824,1740352243397,-500.0,0.0001652,2]
[354221826,1740352243406,-817.19,0.0001652,2]
[354221828,1740352243417,-503.50855532,0.0001652,2]
[354221830,1740352243426,-500.0,0.0001652,2]
[354221832,1740352243435,-500.0,0.0001652,2]
[354221834,1740352243446,-494.59271543,0.0001652,2]
[354221836,1740352243455,-1549.91,0.0001652,2]
[354221838,1740352243465,-500.0,0.0001652,2]
[354221840,1740352243474,-1001.47,0.0001652,2]
[354221842,1740352243483,-500.0,0.0001652,2]
[354221844,1740352243492,-530.13294794,0.0001652,2]
[354221846,1740352243501,-500.0,0.0001652,2]
[354221848,1740352243511,-500.0,0.0001652,2]
[354221850,1740352243520,-2324.01,0.0001652,2]
[354221852,1740352243529,-500.0,0.0001652,2]
[354221854,1740352243539,-500.0,0.0001652,2]
[354221856,1740352243548,-500.0,0.0001652,2]
[354221858,1740352243557,-500.0,0.0001652,2]
[354221860,1740352243566,-500.0,0.0001652,2]
[354221862,1740352243576,-511.66,0.0001652,2]
[354221864,1740352243585,-500.0,0.0001652,2]
[354221866,1740352243594,-594.72701129,0.0001652,2]
[354221868,1740352243604,-1794.41,0.0001652,2]
[354221870,1740352243613,-500.0,0.0001652,2]
[354221872,1740352243622,-1129.65,0.0001652,2]
[354221874,1740352243631,-500.0,0.0001652,2]
[354221876,1740352243641,-500.0,0.0001652,2]
[354221878,1740352243650,-500.0,0.0001652,2]
[354221880,1740352243660,-500.0,0.0001652,2]
[354221882,1740352243669,-500.0,0.0001652,2]
[354221884,1740352243679,-500.0,0.0001652,2]
[354221886,1740352243688,-625.01,0.0001652,2]
[354221888,1740352243697,-500.0,0.0001652,2]
[354221890,1740352243706,-500.0,0.0001652,2]
[354221892,1740352243715,-500.0,0.0001652,2]
[354221894,1740352243724,-500.0,0.0001652,2]
[354221896,1740352243733,-500.0,0.0001652,2]
[354221898,1740352243743,-500.0,0.0001652,2]
[354221900,1740352243752,-1397.93,0.0001652,2]
[354221902,1740352243761,-500.0,0.0001652,2]
[354221904,1740352243770,-546.2,0.0001652,2]
[354221906,1740352243779,-500.0,0.0001652,2]
[354221908,1740352243788,-981.89,0.0001652,2]
[354221909,1740352243797,-805.33,0.0001652,2]
[354221911,1740352243807,-312.46573973,0.0001652,2]
[354221913,1740352243816,-523.09,0.0001652,2]
[354221915,1740352243826,-500.0,0.0001652,2]
[354221917,1740352243836,-500.0,0.0001652,2]
[354221919,1740352243846,-506.5,0.0001652,2]
[354221921,1740352243855,-500.0,0.0001652,2]
[354221923,1740352243865,-500.0,0.0001652,2]
[354221925,1740352243875,-500.0,0.0001652,2]
[354221927,1740352243884,-500.0,0.0001652,2]
[354221929,1740352243893,-1134.74,0.0001652,2]
[354221932,1740352243903,-500.0,0.0001652,2]
[354221934,1740352243912,-500.0,0.0001652,2]
[354221936,1740352243922,-500.0,0.0001652,2]
[354221938,1740352243931,-500.0,0.0001652,2]
[354221940,1740352243942,-883.27,0.0001652,2]
[354221942,1740352243951,-1106.94,0.0001652,2]
[354221944,1740352243960,-500.0,0.0001652,2]
[354221946,1740352243970,-1128.08,0.0001652,2]
[354221948,1740352243979,-500.0,0.0001652,2]
[354221950,1740352243989,-500.0,0.0001652,2]
[354221952,1740352243998,-500.0,0.0001652,2]
[354221954,1740352244008,-500.0,0.0001652,2]
[354221956,1740352244017,-634.06,0.0001652,2]
[354221958,1740352244026,-500.0,0.0001652,2]
[354221960,1740352244035,-662.87,0.0001652,2]
[354221962,1740352244045,-837.17,0.0001652,2]
[354221964,1740352244054,-500.0,0.0001652,2]
[354221966,1740352244063,-500.0,0.0001652,2]
[354221968,1740352244072,-597.91,0.0001652,2]
[354221970,1740352244081,-500.0,0.0001652,2]
[354221972,1740352244090,-500.0,0.0001652,2]
[354221974,1740352244100,-832.13,0.0001652,2]
[354221976,1740352244109,-500.0,0.0001652,2]
[354221978,1740352244118,-500.0,0.0001652,2]
[354221980,1740352244127,-500.0,0.0001652,2]
[354221982,1740352244136,-672.29,0.0001652,2]
[354221984,1740352244146,-2067.35,0.0001652,2]
[354221986,1740352244155,-500.0,0.0001652,2]
[354221988,1740352244165,-1586.18,0.0001652,2]
[354221990,1740352244174,-500.0,0.0001652,2]
[354221992,1740352244184,-500.0,0.0001652,2]
[354221994,1740352244193,-892.37,0.0001652,2]
[354221996,1740352244202,-921.94,0.0001652,2]
[354221998,1740352244211,-500.0,0.0001652,2]
[354222000,1740352244222,-510.83,0.0001652,2]
[354222002,1740352244232,-500.0,0.0001652,2]
[354222004,1740352244241,-1032.21,0.0001652,2]
[354222006,1740352244251,-500.0,0.0001652,2]
[354222008,1740352244260,-1265.76,0.0001652,2]
[354222010,1740352244270,-1084.13,0.0001652,2]
[354222012,1740352244280,-164.128443,0.0001652,2]
[354222014,1740352244289,-1186.12,0.0001652,2]
[354222016,1740352244298,-500.0,0.0001652,2]
[354222018,1740352244307,-500.0,0.0001652,2]
[354222020,1740352244316,-3186.94,0.0001652,2]
[354222022,1740352244325,-1768.88,0.0001652,2]
[354222024,1740352244335,-552.85,0.0001652,2]
[354222027,1740352244344,-500.0,0.0001652,2]
[354222029,1740352244353,-500.0,0.0001652,2]
[354222031,1740352244362,-862.45,0.0001652,2]
[354222033,1740352244375,-500.0,0.0001652,2]
[354222035,1740352244384,-5068.12,0.0001652,2]
[354222037,1740352244394,-500.0,0.0001652,2]
[354222039,1740352244403,-665.11,0.0001652,2]
[354222040,1740352244412,-500.0,0.0001652,2]
[354222043,1740352244421,-2475.28,0.0001652,2]
[354222045,1740352244431,-1177.98,0.0001652,2]
[354222047,1740352244439,-3622.56,0.0001652,2]
[354222049,1740352244448,-3734.72,0.0001652,2]
[354222051,1740352244458,-889.89,0.0001652,2]
[354222053,1740352244467,-2588.08,0.0001652,2]
[354222054,1740352244477,-2533.98,0.0001652,2]
[354222056,1740352244486,-924.34,0.0001652,2]
[354222058,1740352244495,-500.0,0.0001652,2]
[354222060,1740352244504,-781.8,0.0001652,2]
[354222062,1740352244513,-500.0,0.0001652,2]
[354222064,1740352244522,-1166.1,0.0001652,2]
[354222066,1740352244531,-4285.85,0.0001652,2]
[354222068,1740352244540,-500.0,0.0001652,2]
[354222070,1740352244550,-2462.41,0.0001652,2]
[354222072,1740352244559,-4568.6,0.0001652,2]
[354222074,1740352244568,-500.0,0.0001652,2]
[354222076,1740352244577,-1696.89,0.0001652,2]
[354222078,1740352244587,-500.0,0.0001652,2]
[354222080,1740352244596,-926.06,0.0001652,2]
[354222082,1740352244605,-1964.03,0.0001652,2]
[354222084,1740352244614,-500.0,0.0001652,2]
[354222105,1740352244889,-2278.82,0.0001652,2]
[354222108,1740352244906,-685.04,0.0001652,2]
[354222111,1740352244917,-3750.57,0.0001652,2]
[354222112,1740352244927,-500.0,0.0001652,2]
[354222115,1740352244936,-3546.41,0.0001652,2]
[354222117,1740352244945,-775.21,0.0001652,2]
[354222119,1740352244954,-3288.93,0.0001652,2]
[354222121,1740352244964,-1459.04,0.0001652,2]
[354222122,1740352244974,-2118.82,0.0001652,2]
[354222125,1740352244984,-535.8,0.0001652,2]
[354222126,1740352244993,-500.0,0.0001652,2]
[354222129,1740352245003,-833.15,0.0001652,2]
[354222131,1740352245013,-9191.19,0.0001652,2]
[354222133,1740352245022,-2314.24,0.0001652,2]
[354222135,1740352245032,-2785.73,0.0001652,2]
[354222137,1740352245041,-700.96,0.0001652,2]
[354222139,1740352245051,-1702.77,0.0001652,2]
[354222141,1740352245061,-2364.34,0.0001652,2]
[354222143,1740352245070,-500.0,0.0001652,2]
[354222145,1740352245080,-502.74595702,0.0001652,2]
[354222147,1740352245089,-1000.0,0.0001652,2]
[354222149,1740352245099,-2989.26,0.0001652,2]
[354222151,1740352245108,-3366.6,0.0001652,2]
[354222153,1740352245118,-500.0,0.0001652,2]
[354222155,1740352245127,-1459.69,0.0001652,2]
[354222157,1740352245137,-500.0,0.0001652,2]
[354222159,1740352245146,-3225.6,0.0001652,2]
[354222161,1740352245156,-3436.33,0.0001652,2]
[354222163,1740352245165,-1205.82,0.0001652,2]
[354222165,1740352245175,-500.0,0.0001652,2]
[354222167,1740352245185,-500.0,0.0001652,2]
[354222169,1740352245195,-2400.59,0.0001652,2]
[354222171,1740352245204,-1472.81,0.0001652,2]
[354222173,1740352245213,-500.0,0.0001652,2]
[354222175,1740352245224,-246.10183847,0.0001652,2]
[354222177,1740352245233,-2558.47,0.0001652,2]
[354222179,1740352245243,-762.82,0.0001652,2]
[354222181,1740352245253,-500.0,0.0001652,2]
[354222183,1740352245263,-1215.63,0.0001652,2]
[354222185,1740352245273,-785.13,0.0001652,2]
[354222187,1740352245283,-2517.84,0.0001652,2]
[354222189,1740352245292,-1042.89,0.0001652,2]
[354222191,1740352245302,-568.76487554,0.0001652,2]
[354222193,1740352245312,-3831.26,0.0001652,2]
[354222195,1740352245321,-500.0,0.0001652,2]
[354222197,1740352245332,-2213.6,0.0001652,2]
[354222199,1740352245341,-500.0,0.0001652,2]
[354222201,1740352245351,-2081.63,0.0001652,2]
[354222203,1740352245360,-2796.6,0.0001652,2]
[354222205,1740352245372,-2653.58,0.0001652,2]
[354222207,1740352245381,-500.0,0.0001652,2]
[354222209,1740352245390,-4652.21,0.0001652,2]
[354222211,1740352245399,-6178.86,0.0001652,2]
[354222213,1740352245408,-500.0,0.0001652,2]
[354222215,1740352245419,-506.14970224,0.0001652,2]
[354222217,1740352245428,-500.0,0.0001652,2]
[354222219,1740352245438,-500.0,0.0001652,2]
[354222221,1740352245449,-1807.9,0.0001652,2]
[354222223,1740352245459,-500.0,0.0001652,2]
[354222225,1740352245468,-500.0,0.0001652,2]
[354222227,1740352245478,-545.5,0.0001652,2]
[354222229,1740352245487,-516.05569511,0.0001652,2]
[354222231,1740352245496,-1156.85,0.0001652,2]
[354222233,1740352245505,-500.0,0.0001652,2]
[354222235,1740352245515,-958.52,0.0001652,2]
[354222237,1740352245524,-500.0,0.0001652,2]
[354222239,1740352245534,-500.0,0.0001652,2]
[354222241,1740352245543,-4042.99,0.0001652,2]
[354222243,1740352245552,-2150.89,0.0001652,2]
[354222245,1740352245561,-2467.29,0.0001652,2]
[354222247,1740352245570,-500.0,0.0001652,2]
[354222249,1740352245580,-500.0,0.0001652,2]
[354222251,1740352245589,-1525.31,0.0001652,2]
[354222253,1740352245598,-500.0,0.0001652,2]
[354222255,1740352245608,-1572.93,0.0001652,2]
[354222257,1740352245617,-1604.93,0.0001652,2]
[354222259,1740352245626,-500.0,0.0001652,2]
[354222261,1740352245636,-740.21,0.0001652,2]
[354222263,1740352245645,-500.0,0.0001652,2]
[354222265,1740352245655,-609.89,0.0001652,2]
[354222267,1740352245664,-164.128442,0.0001652,2]
[354222269,1740352245673,-500.0,0.0001652,2]
[354222271,1740352245682,-910.04,0.0001652,2]
[354222273,1740352245692,-996.78,0.0001652,2]
[354222275,1740352245701,-3113.04,0.0001652,2]
[354222277,1740352245710,-1324.6,0.0001652,2]
[354222279,1740352245719,-778.7,0.0001652,2]
[354222281,1740352245729,-3359.47,0.0001652,2]
[354222283,1740352245738,-500.0,0.0001652,2]
[354222285,1740352245748,-2688.43386522,0.0001652,2]
[354222327,1740352246121,-113.17613478,0.0001652,2]
[354222329,1740352246130,-159.04403022,0.0001652,2]
[354222332,1740352246147,-340.95596978,0.0001652,2]
[354222334,1740352246156,-17.39761266,0.0001652,2]
[354222336,1740352246169,-1285.33763988,0.0001652,2]
[354222339,1740352246186,-1541.18937342,0.0001652,2]
[354222341,1740352246197,-492.67537404,0.0001652,2]
[354222343,1740352246207,-500.0,0.0001652,2]
[354222345,1740352246216,-187.84219864,0.0001652,2]
[354222347,1740352246226,-1067.12,0.0001652,2]
[354222349,1740352246235,-500.0,0.0001652,2]
[354222351,1740352246245,-732.09,0.0001652,2]
[354222353,1740352246254,-500.0,0.0001652,2]
[354222355,1740352246264,-1406.23,0.0001652,2]
[354222357,1740352246273,-2681.14,0.0001652,2]
[354222359,1740352246282,-500.0,0.0001652,2]
[354222361,1740352246292,-1451.44,0.0001652,2]
[354222363,1740352246301,-1051.59,0.0001652,2]
[354222365,1740352246310,-500.0,0.0001652,2]
[354222367,1740352246320,-500.0,0.0001652,2]
[354222369,1740352246329,-500.0,0.0001652,2]
[354222371,1740352246338,-1072.23012166,0.0001652,2]
[354222374,1740352246351,-1396.61987834,0.0001652,2]
[354222376,1740352246360,-500.0,0.0001652,2]
[354222378,1740352246373,-500.0,0.0001652,2]
[354222380,1740352246383,-500.0,0.0001652,2]
[354222382,1740352246392,-4015.13,0.0001652,2]
[354222384,1740352246402,-500.0,0.0001652,2]
[354222386,1740352246413,-500.0,0.0001652,2]
[354222388,1740352246422,-1635.30276005,0.0001652,2]
[354222390,1740352246434,-1601.45723995,0.0001652,2]
[354222392,1740352246444,-3130.1,0.0001652,2]
[354222394,1740352246453,-2520.94,0.0001652,2]
[354222396,1740352246463,-1158.0,0.0001652,2]
[354222398,1740352246473,-2228.2,0.0001652,2]
[354222400,1740352246482,-500.0,0.0001652,2]
[354222402,1740352246491,-500.0,0.0001652,2]
[354222404,1740352246501,-2193.73,0.0001652,2]
[354222406,1740352246510,-1207.99,0.0001652,2]
[354222408,1740352246519,-500.0,0.0001652,2]
[354222410,1740352246529,-500.0,0.0001652,2]
[354222412,1740352246538,-500.0,0.0001652,2]
[354222414,1740352246548,-2091.05,0.0001652,2]
[354222416,1740352246557,-500.0,0.0001652,2]
[354222418,1740352246567,-2144.88,0.0001652,2]
[354222420,1740352246576,-777.04,0.0001652,2]
[354222422,1740352246585,-2204.27,0.0001652,2]
[354222424,1740352246594,-3170.34,0.0001652,2]
[354222426,1740352246604,-500.0,0.0001652,2]
[354222428,1740352246614,-4039.76,0.0001652,2]
[354222430,1740352246623,-855.37,0.0001652,2]
[354222432,1740352246633,-1360.64,0.0001652,2]
[354222434,1740352246642,-1197.29,0.0001652,2]
[354222436,1740352246651,-4488.35,0.0001652,2]
[354222438,1740352246661,-2797.37,0.0001652,2]
[354222440,1740352246670,-500.0,0.0001652,2]
[354222442,1740352246679,-500.0,0.0001652,2]
[354222444,1740352246688,-1555.96,0.0001652,2]
[354222446,1740352246698,-500.0,0.0001652,2]
[354222448,1740352246707,-800.04,0.0001652,2]
[354222450,1740352246716,-500.0,0.0001652,2]
[354222452,1740352246725,-622.06,0.0001652,2]
[354222454,1740352246735,-1755.06,0.0001652,2]
[354222456,1740352246745,-500.0,0.0001652,2]
[354222458,1740352246754,-1867.84,0.0001652,2]
[354222460,1740352246763,-500.0,0.0001652,2]
[354222462,1740352246772,-3307.92,0.0001652,2]
[354222464,1740352246782,-3319.93,0.0001652,2]
[354222466,1740352246791,-2169.9,0.0001652,2]
[354222468,1740352246800,-500.0,0.0001652,2]
[354222470,1740352246809,-1462.86,0.0001652,2]
[354222472,1740352246818,-1440.74,0.0001652,2]
[354222474,1740352246828,-1189.07,0.0001652,2]
[354222476,1740352246837,-2086.64,0.0001652,2]
[354222478,1740352246847,-878.02,0.0001652,2]
[354222480,1740352246856,-2211.15,0.0001652,2]
[354222482,1740352246865,-619.15,0.0001652,2]
[354222483,1740352246874,-927.36,0.0001652,2]
[354222484,1740352246883,-1624.88,0.0001652,2]
[354222485,1740352246892,-2192.28354667,0.00016521,2]
[354222486,1740352246901,-4460.0,0.00016575,2]
[354222487,1740352246910,-150.0,0.00016599,2]
[354222488,1740352246919,-533.55,0.00016601,2]
[354222489,1740352246929,-893.59,0.00016602,2]
[354222490,1740352246939,-500.0,0.00016602,2]
[354222492,1740352246948,-500.0,0.00016602,2]
[354222494,1740352246958,-500.0,0.00016602,2]
[354222496,1740352246968,-500.0,0.00016602,2]
[354222498,1740352246978,-500.0,0.00016602,2]
[354222500,1740352246987,-551.7,0.00016602,2]
[354222502,1740352246996,-699.78,0.00016602,2]
[354222504,1740352247006,-500.0,0.00016602,2]
[354222506,1740352247015,-500.0,0.00016602,2]
[354222508,1740352247025,-500.0,0.00016602,2]
[354222510,1740352247034,-500.0,0.00016602,2]
[354222512,1740352247043,-818.11,0.00016602,2]
[354222514,1740352247053,-500.0,0.00016602,2]
[354222516,1740352247062,-344.36883275,0.00016602,2]
[354222518,1740352247071,-500.0,0.00016602,2]
[354222528,1740352247160,-500.0,0.00016602,2]
[354222530,1740352247170,-500.0,0.00016602,2]
[354222532,1740352247180,-500.0,0.00016602,2]
[354222534,1740352247189,-500.0,0.00016602,2]
[354222536,1740352247199,-500.0,0.00016602,2]
[354222539,1740352247208,-984.17,0.00016602,2]
[354222540,1740352247219,-500.0,0.00016602,2]
[354222542,1740352247228,-978.85,0.00016602,2]
[354222545,1740352247238,-504.97,0.00016602,2]
[354222547,1740352247247,-500.0,0.00016602,2]
[354222548,1740352247257,-500.0,0.00016602,2]
[354222551,1740352247266,-500.0,0.00016602,2]
[354222552,1740352247276,-500.0,0.00016602,2]
[354222554,1740352247285,-500.0,0.00016602,2]
[354222556,1740352247294,-500.0,0.00016602,2]
[354222559,1740352247303,-1590.9,0.00016602,2]
[354222560,1740352247313,-166.824,0.00016602,2]
[354222563,1740352247322,-1000.79,0.00016602,2]
[354222565,1740352247332,-500.0,0.00016602,2]
[354222567,1740352247341,-500.0,0.00016602,2]
[354222569,1740352247350,-500.0,0.00016602,2]
[354222571,1740352247359,-412.00348835,0.00016602,2]
[354222573,1740352247372,-684.19,0.00016602,2]
[354222575,1740352247381,-658.04,0.00016602,2]
[354222577,1740352247391,-2335.6,0.00016602,2]
[354222579,1740352247399,-1114.32,0.00016602,2]
[354222581,1740352247409,-1056.07,0.00016602,2]
[354222583,1740352247419,-815.39,0.00016602,2]
[354222585,1740352247428,-1007.45,0.00016602,2]
[354222587,1740352247438,-1024.47,0.00016602,2]
[354222589,1740352247448,-1546.7,0.00016602,2]
[354222591,1740352247457,-1380.08,0.00016602,2]
[354222593,1740352247467,-1392.82,0.00016602,2]
[354222594,1740352247477,-1418.33,0.00016602,2]
[354222596,1740352247487,-500.0,0.00016602,2]
[354222599,1740352247497,-1473.44,0.00016602,2]
[354222600,1740352247507,-1042.13,0.00016602,2]
[354222602,1740352247520,-500.0,0.00016602,2]
[354222604,1740352247529,-500.0,0.00016602,2]
[354222606,1740352247540,-500.0,0.00016602,2]
[354222608,1740352247549,-500.0,0.00016602,2]
[354222610,1740352247558,-1455.44,0.00016602,2]
[354222612,1740352247567,-1066.47,0.00016602,2]
[354222614,1740352247576,-583.3,0.00016602,2]
[354222616,1740352247585,-1368.36,0.00016602,2]
[354222618,1740352247594,-500.0,0.00016602,2]
[354222620,1740352247604,-632.65,0.00016602,2]
[354222622,1740352247613,-500.0,0.00016602,2]
[354222624,1740352247623,-1014.8,0.00016602,2]